fUST/lending_fUST_20250106
["ID","MTS","AMOUNT","RATE_DAILY","PERIOD"]
[347869628,1736173842879,-358075.33714354,0.0002,2]
[347869629,1736173842958,-500.0,0.0002,2]
[347869630,1736173843028,-671.77936835,0.00019178,2]
[347869631,1736173843040,-798.89063165,0.00019178,2]
[347869632,1736173843051,-1470.67,0.00019452,3]
[347869633,1736173843060,-1470.67,0.00019726,3]
[347869634,1736173843070,-35854.96919333,0.0002,2]
[347869635,1736173843082,-736.55332444,0.0002,2]
[347869636,1736173843093,-2885.81795652,0.0002,2]
[347869637,1736173843105,-360296.7645134,0.0002,2]
[347869639,1736173843117,-3688.85,0.0002,2]
[347869663,1736173843737,-5000.0,0.0002,2]
[347869664,1736173843749,-6115.77863102,0.0002,2]
[347869665,1736173843761,-1059.89355787,0.0002,2]
[347869680,1736173846698,-1470.67,0.00018986,2]
[347869681,1736173846709,-178013.40684088,0.0002,2]
[347869682,1736173846719,-716.09,0.0002,3]
[347869683,1736173846729,-500.0,0.0002,3]
[347869684,1736173846739,-10420.88,0.0002,3]
[347869685,1736173846748,-500.0,0.0002,3]
[347869686,1736173846758,-915.03,0.0002,3]
[347869687,1736173846768,-693.33,0.0002,3]
[347869688,1736173846777,-500.0,0.0002,3]
[347869689,1736173846788,-500.0,0.0002,3]
[347869690,1736173846798,-847.06,0.0002,3]
[347869691,1736173846811,-500.0,0.0002,3]
[347869692,1736173846820,-500.0,0.0002,3]
[347869693,1736173846830,-500.0,0.0002,3]
[347869694,1736173846840,-500.0,0.0002,3]
[347869695,1736173846854,-500.0,0.0002,3]
[347869696,1736173846863,-500.0,0.0002,3]
[347869697,1736173846873,-1154.28,0.0002,3]
[347869698,1736173846884,-500.0,0.0002,3]
[347869699,1736173846894,-3223.94,0.0002,3]
[347869700,1736173846904,-500.0,0.0002,3]
[347869701,1736173846914,-1470.67,0.0002,3]
[347869702,1736173846924,-500.0,0.00020037,3]
[347869703,1736173846934,-6382.5936427,0.00020107,2]
[347869704,1736173846944,-151.0,0.00020113,2]
[347869705,1736173846954,-151.0,0.00020113,2]
[347869706,1736173846963,-1414.73430567,0.00020173,2]
[347869707,1736173846973,-32651.72648478,0.00020214,3]
[347869708,1736173846983,-500.0,0.00020238,3]
[347869709,1736173846992,-500.0,0.00020272,3]
[347869710,1736173847002,-151.0,0.00020273,2]
[347869711,1736173847012,-151.0,0.00020273,2]
[347869712,1736173847022,-219.28,0.00020273,3]
[347869713,1736173847032,-500.0,0.00020273,3]
[347869714,1736173847041,-290.17715259,0.00020273,3]
[347869715,1736173847051,-2166.97,0.00020273,3]
[347869716,1736173847061,-500.0,0.00020273,3]
[347869717,1736173847071,-1059.5,0.00020273,3]
[347869718,1736173847080,-500.0,0.00020273,3]
[347869719,1736173847089,-716.09,0.00020273,3]
[347869720,1736173847099,-500.0,0.00020273,3]
[347869721,1736173847111,-10420.88,0.00020273,3]
[347869722,1736173847120,-525.94,0.00020273,3]
[347869723,1736173847130,-915.03,0.00020273,3]
[347869724,1736173847139,-693.33,0.00020273,3]
[347869725,1736173847148,-500.0,0.00020273,3]
[347869726,1736173847158,-500.0,0.00020273,3]
[347869727,1736173847167,-847.06,0.00020273,3]
[347869728,1736173847178,-439.96,0.00020273,3]
[347869729,1736173847187,-500.0,0.00020273,3]
[347869730,1736173847196,-500.0,0.00020273,3]
[347869731,1736173847206,-500.0,0.00020273,3]
[347869732,1736173847216,-500.0,0.00020273,3]
[347869733,1736173847226,-500.0,0.00020273,3]
[347869734,1736173847236,-1154.28,0.00020273,3]
[347869735,1736173847246,-500.0,0.00020273,3]
[347869736,1736173847255,-3223.94,0.00020273,3]
[347869737,1736173847264,-500.0,0.00020273,3]
[347869738,1736173847274,-1470.67,0.00020273,3]
[347869739,1736173847283,-6382.5936427,0.00020279,2]
[347869740,1736173847292,-171.3806666,0.00020281,2]
[347869741,1736173847302,-500.0,0.00020313,3]
[347869742,1736173847311,-151.0,0.00020314,2]
[347869743,1736173847321,-6382.5936427,0.00020452,2]
[347869744,1736173847330,-160.0,0.00020492,4]
[347869745,1736173847340,-160.93468141,0.00020492,5]
[347869746,1736173847350,-500.0,0.00020512,3]
[347869747,1736173847360,-175.069009,0.00020521,2]
[347869748,1736173847369,-253.47509845,0.00020546,3]
[347869749,1736173847379,-229.98858,0.00020547,2]
[347869750,1736173847388,-151.0,0.00020547,2]
[347869751,1736173847397,-151.0,0.00020547,2]
[347869752,1736173847407,-500.0,0.00020547,3]
[347869753,1736173847416,-2166.97,0.00020547,3]
[347869754,1736173847426,-155.63,0.00020547,3]
[347869755,1736173847436,-1059.5,0.00020547,3]
[347869756,1736173847445,-151.0,0.00020547,2]
[347869757,1736173847455,-500.0,0.00020547,3]
[347869758,1736173847464,-716.09,0.00020547,3]
[347869759,1736173847473,-500.0,0.00020547,3]
[347869760,1736173847483,-10420.88,0.00020547,3]
[347869761,1736173847492,-915.03,0.00020547,3]
[347869762,1736173847501,-693.33,0.00020547,3]
[347869763,1736173847511,-500.0,0.00020547,3]
[347869764,1736173847520,-500.0,0.00020547,3]
[347869765,1736173847530,-847.06,0.00020547,3]
[347869766,1736173847540,-500.0,0.00020547,3]
[347869767,1736173847549,-500.0,0.00020547,3]
[347869768,1736173847559,-500.0,0.00020547,3]
[347869769,1736173847568,-151.0,0.00020547,2]
[347869770,1736173847578,-500.0,0.00020547,3]
[347869771,1736173847588,-500.0,0.00020547,3]
[347869772,1736173847597,-1154.28,0.00020547,3]
[347869773,1736173847609,-396.49,0.00020547,3]
[347869774,1736173847618,-500.0,0.00020547,3]
[347869775,1736173847627,-3223.94,0.00020547,3]
[347869776,1736173847637,-1470.67,0.00020547,3]
[347869777,1736173847747,-10942.64,0.000206,2]
[347869778,1736173847757,-9073.51,0.000206,2]
[347869779,1736173847767,-4979.3,0.000206,2]
[347869780,1736173847777,-6382.5936427,0.00020624,2]
[347869781,1736173847786,-1480.13,0.000207,2]
[347869782,1736173847796,-175.069009,0.00020712,2]
[347869783,1736173847805,-193.454392,0.0002072,2]
[347869784,1736173847818,-193.454392,0.0002072,2]
[347869785,1736173847827,-500.0,0.00020786,3]
[347869786,1736173847837,-6382.5936427,0.00020797,2]
[347869787,1736173847846,-151.0,0.000208,2]
[347869788,1736173847858,-150.0,0.000208,2]
[347869789,1736173847867,-452.612,0.0002082,2]
[347869790,1736173847877,-229.98858,0.00020821,2]
[347869791,1736173847888,-500.0,0.00020821,3]
[347869792,1736173847898,-2166.97,0.00020821,3]
[347869793,1736173847909,-1059.5,0.00020821,3]
[347869794,1736173847920,-500.0,0.00020821,3]
[347869795,1736173847931,-716.09,0.00020821,3]
[347869796,1736173847941,-500.0,0.00020821,3]
[347869797,1736173847951,-10420.88,0.00020821,3]
[347869798,1736173847961,-915.03,0.00020821,3]
[347869799,1736173847970,-693.33,0.00020821,3]
[347869800,1736173847980,-500.0,0.00020821,3]
[347869801,1736173847991,-500.0,0.00020821,3]
[347869802,1736173848000,-847.06,0.00020821,3]
[347869803,1736173848010,-500.0,0.00020821,3]
[347869804,1736173848019,-500.0,0.00020821,3]
[347869805,1736173848029,-500.0,0.00020821,3]
[347869806,1736173848040,-500.0,0.00020821,3]
[347869807,1736173848050,-1154.28,0.00020821,3]
[347869808,1736173848060,-500.0,0.00020821,3]
[347869809,1736173848070,-3223.94,0.00020821,3]
[347869810,1736173848080,-1470.67,0.00020821,3]
[347869811,1736173848090,-151.0,0.00020865,2]
[347869812,1736173848100,-587.0,0.00020873,2]
[347869813,1736173848110,-151.0,0.000209,2]
[347869814,1736173848120,-151.0,0.000209,2]
[347869815,1736173848130,-151.0,0.000209,2]
[347869816,1736173848140,-175.069009,0.00020904,2]
[347869817,1736173848150,-6382.5936427,0.00020969,2]
[347869818,1736173848160,-229.98858,0.00021,2]
[347869819,1736173848170,-151.0,0.00021,2]
[347869820,1736173848180,-151.0,0.00021,2]
[347869821,1736173848189,-5164.75756255,0.00021,2]
[347869822,1736173848199,-229.98858,0.0002104,2]
[347869823,1736173848209,-600.0,0.0002104,2]
[347869824,1736173848219,-151.0,0.0002106,2]
[347869825,1736173848228,-151.0,0.0002106,2]
[347869826,1736173848238,-500.0,0.0002106,3]
[347869827,1736173848248,-5000.0,0.0002107,7]
[347869828,1736173848259,-279.26,0.00021095,3]
[347869829,1736173848269,-151.0,0.00021095,2]
[347869830,1736173848279,-2166.97,0.00021095,3]
[347869831,1736173848290,-1059.5,0.00021095,3]
[347869832,1736173848299,-219.16,0.00021095,3]
[347869833,1736173848310,-151.0,0.00021095,2]
[347869834,1736173848319,-716.09,0.00021095,3]
[347869835,1736173848329,-500.0,0.00021095,3]
[347869836,1736173848339,-10420.88,0.00021095,3]
[347869837,1736173848348,-915.03,0.00021095,3]
[347869838,1736173848361,-693.33,0.00021095,3]
[347869839,1736173848371,-500.0,0.00021095,3]
[347869840,1736173848383,-500.0,0.00021095,3]
[347869841,1736173848393,-847.06,0.00021095,3]
[347869842,1736173848402,-500.0,0.00021095,3]
[347869843,1736173848412,-500.0,0.00021095,3]
[347869844,1736173848421,-500.0,0.00021095,3]
[347869845,1736173848431,-151.0,0.00021095,2]
[347869846,1736173848441,-500.0,0.00021095,3]
[347869847,1736173848451,-1154.28,0.00021095,3]
[347869848,1736173848460,-500.0,0.00021095,3]
[347869849,1736173848471,-3223.94,0.00021095,3]
[347869850,1736173848480,-1470.67,0.00021095,3]
[347869851,1736173848490,-175.069009,0.00021096,2]
[347869852,1736173848500,-6382.5936427,0.00021141,2]
[347869853,1736173848509,-500.0,0.00021147,2]
[347869854,1736173848519,-4606.22473939,0.000212,2]
[347869855,1736173848528,-4606.22473937,0.000212,2]
[347869856,1736173848537,-4606.22473937,0.000212,2]
[347869857,1736173848547,-4606.22473937,0.000212,2]
[347869858,1736173848556,-151.0,0.000212,2]
[347869859,1736173848566,-600.0,0.00021259,2]
[347869860,1736173848577,-175.069009,0.00021288,2]
[347869861,1736173848586,-229.98858,0.000213,2]
[347869862,1736173848596,-6382.5936427,0.00021314,2]
[347869863,1736173848607,-500.0,0.00021334,3]
[347869864,1736173848617,-151.0,0.00021369,2]
[347869865,1736173848627,-151.0,0.00021369,2]
[347869866,1736173848636,-2166.97,0.00021369,3]
[347869867,1736173848646,-1059.5,0.00021369,3]
[347869868,1736173848655,-193.454392,0.00021369,2]
[347869869,1736173848665,-193.454392,0.00021369,2]
[347869870,1736173848674,-716.09,0.00021369,3]
[347869871,1736173848684,-500.0,0.00021369,3]
[347869872,1736173848693,-10420.88,0.00021369,3]
[347869873,1736173848703,-915.03,0.00021369,3]
[347869874,1736173848712,-693.33,0.00021369,3]
[347869875,1736173848722,-500.0,0.00021369,3]
[347869876,1736173848732,-500.0,0.00021369,3]
[347869877,1736173848742,-847.06,0.00021369,3]
[347869878,1736173848752,-500.0,0.00021369,3]
[347869879,1736173848762,-500.0,0.00021369,3]
[347869880,1736173848771,-500.0,0.00021369,3]
[347869881,1736173848781,-500.0,0.00021369,3]
[347869882,1736173848791,-1154.28,0.00021369,3]
[347869883,1736173848800,-500.0,0.00021369,3]
[347869884,1736173848813,-3223.94,0.00021369,3]
[347869885,1736173848823,-1470.67,0.00021369,3]
[347869886,1736173848833,-168.19693388,0.00021422,2]
[347869887,1736173848843,-499.52460437,0.00021422,2]
[347869888,1736173848855,-500.0,0.00021422,2]
[347869889,1736173848865,-393.00001,0.00021432,2]
[347869890,1736173848875,-1143.65321259,0.00021479,2]
[347869891,1736173848889,-175.069009,0.00021479,2]
[347869892,1736173848899,-6382.5936427,0.00021486,2]
[347869893,1736173848909,-2000.0,0.000215,6]
[347869894,1736173848919,-500.0,0.00021608,3]
[347869895,1736173848929,-171.3806666,0.00021628,2]
[347869896,1736173848939,-229.98858,0.00021643,2]
[347869897,1736173848949,-2166.97,0.00021643,3]
[347869898,1736173848959,-1059.5,0.00021643,3]
[347869899,1736173848969,-151.0,0.00021643,2]
[347869900,1736173848979,-716.09,0.00021643,3]
[347869901,1736173848990,-500.0,0.00021643,3]
[347869902,1736173849000,-10420.88,0.00021643,3]
[347869903,1736173849010,-915.03,0.00021643,3]
[347869904,1736173849020,-693.33,0.00021643,3]
[347869905,1736173849030,-500.0,0.00021643,3]
[347869906,1736173849040,-500.0,0.00021643,3]
[347869907,1736173849050,-847.06,0.00021643,3]
[347869908,1736173849060,-500.0,0.00021643,3]
[347869909,1736173849070,-313.2,0.00021643,3]
[347869910,1736173849080,-500.0,0.00021643,3]
[347869911,1736173849091,-500.0,0.00021643,3]
[347869912,1736173849101,-1154.28,0.00021643,3]
[347869913,1736173849111,-500.0,0.00021643,3]
[347869914,1736173849120,-3223.94,0.00021643,3]
[347869915,1736173849130,-1470.67,0.00021643,3]
[347869916,1736173849139,-6382.5936427,0.00021659,2]
[347869917,1736173849150,-175.069009,0.00021671,2]
[347869918,1736173849159,-6382.5936427,0.00021831,2]
[347869919,1736173849169,-175.069009,0.00021863,2]
[347869920,1736173849179,-500.0,0.00021882,3]
[347869921,1736173849188,-150.0,0.000219,2]
[347869922,1736173849198,-229.98858,0.00021917,2]
[347869923,1736173849208,-229.98858,0.00021917,2]
[347869924,1736173849217,-151.0,0.00021917,2]
[347869925,1736173849227,-151.0,0.00021917,2]
[347869926,1736173849237,-151.0,0.00021917,2]
[347869927,1736173849247,-2166.97,0.00021917,3]
[347869928,1736173849257,-500.0,0.00021917,3]
[347869929,1736173849267,-150.06,0.00021917,3]
[347869930,1736173849276,-150.06,0.00021917,2]
[347869931,1736173849287,-1059.5,0.00021917,3]
[347869932,1736173849297,-151.0,0.00021917,2]
[347869933,1736173849307,-716.09,0.00021917,3]
[347869934,1736173849317,-281.73448906,0.00021917,3]
[347869935,1736173849327,-10420.88,0.00021917,3]
[347869936,1736173849336,-150.08,0.00021917,3]
[347869937,1736173849346,-915.03,0.00021917,3]
[347869938,1736173849357,-150.08,0.00021917,3]
[347869939,1736173849366,-693.33,0.00021917,3]
[347869940,1736173849376,-629.58779827,0.00021917,3]
[347869941,1736173849386,-500.0,0.00021917,3]
[347869942,1736173849396,-847.06,0.00021917,3]
[347869943,1736173849406,-500.0,0.00021917,3]
[347869944,1736173849416,-500.0,0.00021917,3]
[347869945,1736173849427,-151.0,0.00021917,2]
[347869946,1736173849437,-500.0,0.00021917,3]
[347869947,1736173849446,-1154.28,0.00021917,3]
[347869948,1736173849456,-500.0,0.00021917,3]
[347869949,1736173849466,-3223.94,0.00021917,3]
[347869950,1736173849476,-1470.67,0.00021917,3]
[347869951,1736173849486,-219.16829112,0.00021918,3]
[347869952,1736173849495,-5000.0,0.0002193,2]
[347869953,1736173849505,-5000.0,0.0002193,2]
[347869954,1736173849515,-5000.0,0.0002193,2]
[347869955,1736173849524,-5000.0,0.0002193,2]
[347869956,1736173849534,-151.0,0.0002193,7]
[347869957,1736173849545,-151.0,0.00021969,7]
[347869958,1736173849555,-193.454392,0.00021969,7]
[347869959,1736173849564,-193.454392,0.00021969,7]
[347869960,1736173849573,-1000.0,0.0002197,2]
[347869961,1736173849583,-46693.92383853,0.00022,2]
[347869962,1736173849598,-691.4799,0.00022,2]
[347869963,1736173849615,-752.09025883,0.00022,2]
[347869964,1736173849626,-336.65999991,0.00022,2]
[347869965,1736173849657,-125.58669103,0.00022,2]
[347869966,1736173849668,-229.98858,0.00022,7]
[347869967,1736173849677,-229.98858,0.00022,7]
[347869968,1736173849687,-151.0,0.00022,7]
[347869969,1736173849696,-151.0,0.00022,7]
[347869970,1736173849705,-151.0,0.00022,7]
[347869971,1736173849714,-151.0,0.00022,7]
[347869972,1736173849724,-1856.99038596,0.00022003,2]
[347869973,1736173863748,604.76575735,0.00014997,2]
[347869974,1736173864100,604.76575735,0.0001499,2]
[347869975,1736173864489,604.76575735,0.00014999,2]
[347869976,1736173931733,162.6838036,0.00025,120]
[347869980,1736174132547,165.172387,0.00013973,2]
[347869986,1736174647679,200.0,0.00025,120]
[347869987,1736174759824,739.29031088,0.00025,120]
[347869988,1736174788406,5950.06,0.0001505,2]
[347870020,1736175032117,-5000.0,0.00016781,2]
[347870021,1736175032128,-1768.0,0.00016951,2]
[347870022,1736175032138,-250.0,0.00016951,2]
[347870023,1736175032147,-683.3022281,0.00016966,2]
[347870024,1736175032158,-1844.87590721,0.00017758,2]
[347870025,1736175032168,-300.0,0.00017854,2]
[347870026,1736175032178,-5770.95662954,0.00017855,2]
[347870027,1736175032189,-3926.29296144,0.00017855,2]
[347870028,1736175032201,-65723.75040902,0.00017855,2]
[347870029,1736175032211,-500.0,0.00017856,2]
[347870030,1736175032221,-500.0,0.00017856,2]
[347870031,1736175032231,-500.0,0.00017856,2]
[347870032,1736175032240,-500.0,0.00017856,2]
[347870033,1736175032250,-500.0,0.00017856,2]
[347870034,1736175032263,-500.0,0.00017856,2]
[347870035,1736175032272,-500.0,0.00017856,2]
[347870036,1736175032282,-500.0,0.00017856,2]
[347870037,1736175032292,-500.0,0.00017856,2]
[347870038,1736175032303,-500.0,0.00017856,2]
[347870039,1736175032312,-500.0,0.00017856,2]
[347870040,1736175032322,-500.0,0.00017856,2]
[347870041,1736175032333,-500.0,0.00017856,2]
[347870042,1736175032344,-500.0,0.00017856,2]
[347870043,1736175032355,-500.0,0.00017856,2]
[347870044,1736175032366,-500.0,0.00017856,2]
[347870045,1736175032375,-500.0,0.00017856,2]
[347870046,1736175032385,-500.0,0.00017856,2]
[347870047,1736175032394,-500.0,0.00017856,2]
[347870048,1736175032403,-500.0,0.00017856,2]
[347870049,1736175032413,-502.01074099,0.00017856,2]
[347870050,1736175032423,-500.0,0.00017856,2]
[347870051,1736175032432,-500.0,0.00017856,2]
[347870052,1736175032442,-500.0,0.00017856,2]
[347870053,1736175032451,-500.0,0.00017856,2]
[347870054,1736175032461,-500.0,0.00017856,2]
[347870055,1736175032471,-500.0,0.00017856,2]
[347870056,1736175032480,-500.0,0.00017856,2]
[347870057,1736175032490,-500.0,0.00017856,2]
[347870058,1736175032499,-500.0,0.00017856,2]
[347870059,1736175032508,-500.0,0.00017856,2]
[347870060,1736175032518,-500.0,0.00017856,2]
[347870061,1736175032527,-500.0,0.00017856,2]
[347870062,1736175032536,-500.0,0.00017856,2]
[347870063,1736175032546,-500.0,0.00017856,2]
[347870064,1736175032555,-500.0,0.00017856,2]
[347870065,1736175032565,-500.0,0.00017856,2]
[347870066,1736175032574,-650.0,0.00017856,2]
[347870067,1736175032584,-918.35961543,0.00017858,2]
[347870068,1736175032596,-262.61935194,0.00018014,2]
[347870069,1736175032606,-331.39137219,0.00018014,2]
[347870070,1736175032616,-500.0,0.00018014,2]
[347870071,1736175032625,-300.40143662,0.00018014,2]
[347870072,1736175032634,-8035.76019381,0.00018015,2]
[347870073,1736175032660,-4742.81975392,0.00018015,2]
[347870089,1736175037771,-500.0,0.00018015,2]
[347870090,1736175037788,-6730.81385424,0.00018015,2]
[347870091,1736175037797,-499.0,0.00018045,2]
[347870092,1736175037807,-24900.0,0.00018049,2]
[347870093,1736175037817,-500.0,0.00018073,2]
[347870094,1736175037827,-1844.87590717,0.00018088,2]
[347870095,1736175037837,-152.0,0.00018246,2]
[347870096,1736175037846,-1844.87590717,0.00018418,2]
[347870097,1736175037856,-152.86,0.000186,2]
[347870098,1736175037866,-192.0,0.00018656,2]
[347870099,1736175037876,-1844.87590717,0.00018748,2]
[347870100,1736175037886,-200.0,0.0001889,2]
[347870101,1736175037895,-178.319,0.000189,2]
[347870102,1736175037906,-23810.67804223,0.00019,3]
[347870103,1736175037916,-1844.87590717,0.00019078,2]
[347870104,1736175037926,-32651.72648478,0.00019078,2]
[347870105,1736175037935,-3951.66002715,0.000191,2]
[347870106,1736175037945,-3951.66002693,0.000191,2]
[347870107,1736175037955,-3951.66002693,0.000191,2]
[347870108,1736175037964,-3951.66002693,0.000191,2]
[347870109,1736175037973,-3951.66002693,0.000191,2]
[347870110,1736175037983,-3951.66002693,0.000191,2]
[347870111,1736175037992,-3951.66002693,0.00019141,2]
[347870112,1736175038002,-267.95883388,0.00019173,2]
[347870113,1736175038011,-500.0,0.00019173,2]
[347870114,1736175038020,-271.56017929,0.00019173,2]
[347870115,1736175038030,-283.48671577,0.00019173,2]
[347870116,1736175038039,-261.72229294,0.00019173,2]
[347870117,1736175038049,-501.3383945,0.00019173,2]
[347870118,1736175038059,-500.0,0.00019173,2]
[347870119,1736175038068,-468.73763203,0.00019173,2]
[347870120,1736175038077,-160.6306041,0.00019173,2]
[347870121,1736175038086,-265.71868349,0.00019173,2]
[347870122,1736175038096,-500.0,0.00019173,2]
[347870123,1736175038112,-500.0,0.00019178,2]
[347870124,1736175038128,-500.0,0.00019178,2]
[347870125,1736175038138,-500.0,0.00019178,2]
[347870126,1736175038148,-450.67491659,0.00019178,2]
[347870127,1736175038159,-500.77586949,0.00019178,2]
[347870128,1736175038168,-500.0,0.00019178,2]
[347870129,1736175038178,-500.0,0.00019178,2]
[347870130,1736175038188,-500.0,0.00019178,2]
[347870131,1736175038198,-500.0,0.00019178,2]
[347870132,1736175038207,-500.72350205,0.00019178,2]
[347870133,1736175038217,-607.13649725,0.00019178,2]
[347870134,1736175038226,-500.0,0.00019178,2]
[347870135,1736175038236,-504.09900591,0.00019178,2]
[347870136,1736175038245,-500.75020973,0.00019178,2]
[347870137,1736175038256,-500.0,0.00019178,2]
[347870138,1736175038265,-500.0,0.00019178,2]
[347870139,1736175038276,-500.76025988,0.00019178,2]
[347870140,1736175038285,-224.84158998,0.00019178,2]
[347870141,1736175038295,-500.0,0.00019178,2]
[347870142,1736175038305,-500.0,0.00019178,2]
[347870143,1736175038315,-500.0,0.00019178,2]
[347870144,1736175038325,-504.64770332,0.00019178,2]
[347870145,1736175038335,-500.0,0.00019178,2]
[347870146,1736175038344,-500.0,0.00019178,2]
[347870147,1736175038353,-500.0,0.00019178,2]
[347870148,1736175038363,-297.60180309,0.00019178,2]
[347870149,1736175038373,-500.0,0.00019178,2]
[347870150,1736175038383,-500.29880191,0.00019178,2]
[347870151,1736175038392,-500.0,0.00019178,2]
[347870152,1736175038402,-500.0,0.00019178,2]
[347870153,1736175038413,-500.0,0.00019178,2]
[347870154,1736175038423,-500.91337462,0.00019178,2]
[347870155,1736175038433,-500.0,0.00019178,2]
[347870156,1736175038443,-500.0,0.00019178,2]
[347870157,1736175038453,-500.0,0.00019178,2]
[347870158,1736175038463,-500.0,0.00019178,2]
[347870159,1736175038473,-500.0,0.00019178,2]
[347870160,1736175038482,-500.0,0.00019178,2]
[347870161,1736175038492,-500.0,0.00019178,2]
[347870162,1736175038502,-501.09498638,0.00019178,2]
[347870163,1736175038512,-500.0,0.00019178,2]
[347870164,1736175038521,-500.0,0.00019178,2]
[347870165,1736175038531,-500.0,0.00019178,2]
[347870166,1736175038541,-500.0,0.00019178,2]
[347870167,1736175038551,-500.0,0.00019178,2]
[347870168,1736175038560,-500.0,0.00019178,2]
[347870169,1736175038571,-500.0,0.00019178,2]
[347870170,1736175038580,-500.0,0.00019178,2]
[347870171,1736175038590,-500.0,0.00019178,2]
[347870172,1736175038600,-500.0,0.00019178,2]
[347870173,1736175038609,-500.0,0.00019178,2]
[347870174,1736175038619,-500.46316773,0.00019178,2]
[347870175,1736175038628,-500.0,0.00019178,2]
[347870176,1736175038638,-500.0,0.00019178,2]
[347870177,1736175038647,-405.33351785,0.00019178,2]
[347870178,1736175038657,-500.0,0.00019178,2]
[347870179,1736175038666,-360.14802106,0.00019178,2]
[347870180,1736175038677,-500.0,0.00019178,2]
[347870181,1736175038686,-500.0,0.00019178,2]
[347870182,1736175038695,-500.0,0.00019178,2]
[347870183,1736175038704,-500.0,0.00019178,2]
[347870184,1736175038714,-500.0,0.00019178,2]
[347870185,1736175038723,-598.98,0.00019178,2]
[347870186,1736175038733,-500.0,0.00019178,2]
[347870187,1736175038742,-500.0,0.00019178,2]
[347870188,1736175038752,-500.0,0.00019178,2]
[347870189,1736175038761,-500.0,0.00019178,2]
[347870190,1736175038770,-534.51,0.00019178,2]
[347870191,1736175038780,-500.0,0.00019178,2]
[347870192,1736175038790,-500.0,0.00019178,2]
[347870193,1736175038799,-500.0,0.00019178,2]
[347870194,1736175038809,-500.0,0.00019178,2]
[347870195,1736175038818,-500.0,0.00019178,2]
[347870196,1736175038828,-500.0,0.00019178,2]
[347870197,1736175038838,-500.0,0.00019178,2]
[347870198,1736175038848,-254.19619453,0.00019178,2]
[347870199,1736175038858,-500.0,0.00019178,2]
[347870200,1736175038867,-500.0,0.00019178,2]
[347870201,1736175038877,-500.0,0.00019178,2]
[347870202,1736175038887,-500.0,0.00019178,2]
[347870203,1736175038897,-500.0,0.00019178,2]
[347870204,1736175038907,-500.0,0.00019178,2]
[347870205,1736175038916,-500.0,0.00019178,2]
[347870206,1736175038926,-500.0,0.00019178,2]
[347870207,1736175038935,-500.0,0.00019178,2]
[347870208,1736175038945,-501.82621577,0.00019178,2]
[347870209,1736175038955,-500.0,0.00019178,2]
[347870210,1736175038965,-500.0,0.00019178,2]
[347870211,1736175038975,-500.0,0.00019178,2]
[347870212,1736175038985,-500.0,0.00019178,2]
[347870213,1736175038995,-500.0,0.00019178,2]
[347870214,1736175039004,-237.47278137,0.00019178,2]
[347870215,1736175039014,-500.0,0.00019178,2]
[347870216,1736175039024,-500.0,0.00019178,2]
[347870217,1736175039033,-500.0,0.00019178,2]
[347870218,1736175039043,-500.0,0.00019178,2]
[347870219,1736175039053,-500.0,0.00019178,2]